Workbook

Sheet Лист1
A1: ПЕРВЕНСТВО ГБУ ДО РЮСШ ПО КОННОМУ СПОРТУ ПО ВЫЕЗДКЕ
A2: Технические результаты
A3: Предварительный приз А. Дети ( любители).
A4: судьи: Ильянова Л.И. - С, Романова А.С. - В, Фокеева А - Н.
A5: МКСК "Казань 8 илюя 2016
A6: Место | B6: Фамилия, Имя всадника | C6: Г. р. | D6: Звание, разряд | E6: Кличка лошади, г.р., масть, пол, порода, отец, место рождения | F6: Н | I6: С | L6: В | O6: Кол. ошиб. | P6: Всего баллов | Q6: Всего % | R6: Вып.норм
F7: балл | G7: % | H7: место | I7: балл | J7: % | K7: место | L7: балл | M7: % | N7: место
A8: 1 | B8: Яковлева Полина | C8: 1992 | E8: Дамаска1998, вороная кобыла, кабардинской п.,ТатарстанДомаска | F8: 166 | G8: =F8/2.6 -> 63.84615385 | H8: 1 | I8: 176 | J8: =I8/2.6 -> 67.69230769 | K8: 1 | L8: 173 | M8: =L8/2.6 -> 66.53846154 | N8: 1 | O8: 0 | P8: =L8+I8+L8 -> 522 | Q8: =(P8/3)/2.6 -> 66.92307692
A9: 2 | B9: Джапасбатова Дина | C9: 2001 | E9: Заказ 1999 вороной жеребец,русской рысистой, Талисман,СПК Архангельский | F9: 163 | G9: =F9/2.6 -> 62.69230769 | H9: 2 | I9: 159 | J9: =I9/2.6 -> 61.15384615 | K9: 2 | L9: 165.5 | M9: =L9/2.6 -> 63.65384615 | N9: 2 | O9: 0 | P9: =L9+I9+L9 -> 490 | Q9: =(P9/3)/2.6 -> 62.82051282 | R9: 2 юн
B11: Главный судья: Ипатова Г.В. | E11: Ильянова Л.И.
B12: Главный секретарь: Коршунова Г.А. | E12: Турцива Ю.Н

Sheet Лист2
A1: ПЕРВЕНСТВО ГБУ ДО РЮСШ ПО КОННОМУ СПОРТУ ПО ВЫЕЗДКЕ
A2: Технические результаты
A3: Предварительный приз.Юноши.
A4: судьи: Ильянова Л.И. - С, Романова А.С. - В, Фокеева А - Н.
A5: МКСК "Казань 8 илюя 2016
A6: место | B6: Фамилия имя всадника | C6: г.р | D6: Звание, разряд | E6: Кличка лошади, г.р., масть, пол, порода, отец, место рождения | F6: В | I6: С | L6: Н | O6: Кол. ошиб. | P6: Всего баллов | Q6: Всего % | R6: Вып.норм
F7: балл | G7: % | H7: место | I7: балл | J7: % | K7: место | L7: балл | M7: % | N7: место
A8: 1 | B8: Хватков Роман | C8: 2001 | D8: 2 | E8: Диаманта 2005, рыжая кобыла, латвийской п., Торнадо, Кировская область | F8: 213.5 | G8: =F8/3.4 -> 62.79411765 | H8: =RANK(G8,G$8:G$9,0) -> 1 | I8: 219.5 | J8: =I8/3.4 -> 64.55882353 | K8: =RANK(J8,J$8:J$9,0) -> 1 | L8: 211 | M8: =L8/3.4 -> 62.05882353 | N8: =RANK(M8,M$8:M$9,0) -> 1 | O8: 0 | P8: =F8+I8+L8 -> 644 | Q8: =(P8/3)/3.4 -> 63.1372549 | R8: 2
A9: 2 | B9: Магрифатуллина Аделина | C9: 1998 | D9: КМС | E9: Бэлфаер2008 караковый мерин, русской верховой п., 54Барон-167Интерия, Россия, К/З «Отрада» | F9: 210.5 | G9: =F9/3.4 -> 61.91176471 | H9: =RANK(G9,G$8:G$9,0) -> 2 | I9: 206.5 | J9: =I9/3.4 -> 60.73529412 | K9: =RANK(J9,J$8:J$9,0) -> 2 | L9: 211 | M9: =L9/3.4 -> 62.05882353 | N9: =RANK(M9,M$8:M$9,0) -> 1 | O9: 0 | P9: =F9+I9+L9 -> 628 | Q9: =(P9/3)/3.4 -> 61.56862745 | R9: 3
B10: Главный судья: Ипатова Г.В. | E10: Ильянова Л.И.
B11: Главный секретарь: Коршунова Г.А. | E11: Турцива Ю.Н

Sheet Лист3
A1: ПЕРВЕНСТВО ГБУ ДО РЮСШ ПО КОННОМУ СПОРТУ ПО КОНКУРУ
A2: Технические результаты
A3: Маршрут №3, 100 дети
A5: МКСК г. Казань 8 июля 2016г
A6: место | B6: Фамилия, Имя всадника | C6: звание, разрядов | D6: Кличка лошади, г.р., масть, пол, порода, отец, место рождения | E6: Команда, регион | F6: Маршрут | H6: Вып.норм
F7: ш.о | G7: время
A8: 1 | B8: Ахметзянова Камиля | D8: Илизар 1999,рыж., мерин, буденовской п. | E8: ГБУ ДО РДЮСШ по конному спорту МДМСиТ РТ | F8: 0 | G8: 80,57 | H8: 3
A9: 2 | B9: Ахметзянова Камиля | D9: Дукат 2007,рыжий жеребец, латвийской п. | E9: ГБУ ДО РДЮСШ по конному спорту МДМСиТ РТ | F9: 4 | G9: 84.96 | H9: 1 юн
A10: 3 | B10: Мухарямов Нияз | D10: Озимь 2005, темн.гнедая кобыла, тракененской п. | E10: ГБУ ДО РДЮСШ по конному спорту МДМСиТ РТ | F10: 8 | G10: 96.18
A11: 4 | B11: Хапугина Виктория | D11: Лига 2002, гнедая кобылла, голштинской п. | E11: ГБУ ДО РДЮСШ по конному спорту МДМСиТ РТ | F11: 8 | G11: 105.53
A12: 5 | B12: Хапугина Виктория | D12: Плагиат 2004, гнедой жеребец, тракененской п. | E12: ГБУ ДО РДЮСШ по конному спорту МДМСиТ РТ | F12: снят
A13: 6 | B13: Ибрагимова Сабина | D13: Купава 2005, рыжая кобыла, анго-арабскойп. | E13: ГБУ ДО РДЮСШ по конному спорту МДМСиТ РТ | F13: снят
B14: Главный судья | E14: Насыбуллина А.Р.
B15: Главный секретарь | E15: Турцева Ю.Н.

Sheet Лист4
A1: ПЕРВЕНСТВО ГБУ ДО РЮСШ ПО КОННОМУ СПОРТУ ПО КОНКУРУ
A2: Технические результаты
A3: Маршрут №3, 100 любители
A5: МКСК г. Казань 8 июля 2016г
A6: место | B6: Фамилия, Имя всадника | C6: звание, разрядов | D6: Кличка лошади, г.р., масть, пол, порода, отец, место рождения | E6: Команда, регион | F6: Маршрут | H6: Вып.норм
F7: ш.о | G7: время
A8: 1 | B8: Соколова Алина | C8: б\р | D8: Илизар 1999,рыж., мерин, буденовской п. | E8: ГБУ ДО РДЮСШ по конному спорту МДМСиТ РТ | F8: 0 | G8: 75,25 | H8: 3
A9: 2 | B9: Сидорова Анастасия | C9: б\р | D9: Афродита2010, рыжая кобыла,Донской п. | E9: Ч/В | F9: 0 | G9: 113.43 | H9: 3
A10: 3 | B10: Диянова Мария | C10: б\р | D10: Любезна | E10: КСК Пристиж | F10: 4 | G10: 93.06 | H10: 1 юн
A11: 4 | B11: Краснобаева Ольга | C11: б\р | D11: Барка | E11: КСК Пристиж | F11: 12 | G11: 84.11
A12: 5 | B12: Сабирова Динара | C12: б\р | D12: Диапазон 2006, гнедой жеребец, русской рысистой п. | E12: Ч/В | F12: снят
A13: 6 | B13: Никонорова Оксана | C13: б\р | D13: Размах2009, рыжий мерин, русской рысистой п. | E13: Ч/В | F13: снят
A14: 7 | B14: Фазулзянова Аделина | C14: б\р | D14: Афродита2010, рыжая кобыла,Донской п. | E14: Ч/В | F14: снят
A15: 8 | B15: Сидорова Анастасия | C15: б\р | D15: Вайхона2010, рыжая кобыла,тракененской п. | E15: Ч/В | F15: снят
A16: 9 | B16: Соколова Алина | C16: б\р | D16: Плагиат 2004, гнедой жеребец, тракененской п. | E16: ГБУ ДО РДЮСШ по конному спорту МДМСиТ РТ | F16: снят
A17: 10 | B17: Николаева Анастасия | C17: б\р | D17: Любезна | E17: КСК Пристиж | F17: снят
B18: Главный судья | E18: Насыбуллина А.Р.
B19: Главный секретарь | E19: Турцева Ю.Н.

Sheet Лист5
A1: ПЕРВЕНСТВО ГБУ ДО РЮСШ ПО КОННОМУ СПОРТУ ПО КОНКУРУ
A2: Технические результаты
A3: Маршрут №3, 100 молодые лошади
A5: МКСК г. Казань 8 июля 2016г
A6: место | B6: Фамилия, Имя всадника | C6: звание, разрядов | D6: Кличка лошади, г.р., масть, пол, порода, отец, место рождения | E6: Команда, регион | F6: Маршрут | H6: Вып.норм
F7: ш.о | G7: время
A8: 1 | B8: Бадрутинова Эльза | C8: 2 | D8: Скипер2012 гнедой жеребец, ганноверской п. | E8: ГБУ ДО РДЮСШ по конному спорту МДМСиТ РТ | F8: 4 | G8: 117.4 | H8: 1 юн.
A9: 2 | B9: Пантелеева Ирина | C9: б\р | D9: Бэлла | E9: КСК Пристиж | F9: 8 | G9: 81,00
A10: 3 | B10: Галиулин Васим | C10: б\р | D10: Флайбот | E10: КСК Пристиж | F10: 8 | G10: 87.62
A11: 4 | B11: Нарзяева Наталия | C11: б/р | D11: Хольтея2011, рыжая кобыла, тракененской п. | E11: ГБУ ДО РДЮСШ по конному спорту МДМСиТ РТ | F11: 12 | G11: 102.26
B13: Главный судья | E13: Насыбуллина А.Р.
B14: Главный секретарь | E14: Турцева Ю.Н.

Sheet Лист6
A1: ПЕРВЕНСТВО ГБУ ДО РЮСШ ПО КОННОМУ СПОРТУ ПО КОНКУРУ
A2: Технические результаты
A3: Маршрут №2, 110 общий зачет
A5: МКСК г. Казань 8 июля 2016г
A6: место | B6: Фамилия, Имя всадника | C6: звание, разрядов | D6: Кличка лошади, г.р., масть, пол, порода, отец, место рождения | E6: Команда, регион | F6: Маршрут | H6: Вып.норм
F7: ш.о | G7: время
A8: 1 | B8: Бадрутинова Эльза | C8: 2 | D8: Кентаки 2010, рыжая кобыла,голштинской п. | E8: ГБУ ДО РДЮСШ по конному спорту МДМСиТ РТ | F8: 8 | G8: 103.4
A9: 2 | B9: Валиуллина Диана | C9: 1 юн | D9: Озимь 2005, темн.гнедая кобыла, тракененской п. | E9: ГБУ ДО РДЮСШ по конному спорту МДМСиТ РТ | F9: 16 | G9: 120.74
A10: 3 | B10: Ибрагимова Сабина | C10: 3 | D10: Фолиант 2007, рыжий жеребец, латвийской п. | E10: ГБУ ДО РДЮСШ по конному спорту МДМСиТ РТ | F10: 24 | G10: 85.52
A11: 5 | B11: Шайхиев Айрат | C11: б\р | D11: Октавианка 2010 вороная, кобыла, ганноверская п. | E11: ГБУ ДО РДЮСШ по конному спорту МДМСиТ РТ | F11: снят
B13: Главный судья | E13: Насыбуллина А.Р.
B14: Главный секретарь | E14: Турцева Ю.Н.
